Cogmind - Beta 13 @@@ ROGUE MODE // 2024.04.05 @ 10:45:20 Player: bonio350 Result: Destroyed by G-47 Trooper with Particle Gun Performance ------------- Evolutions (2) 1000 Regions Visited (3) 600 Robots Destroyed (12) 60 Value Destroyed (379) 379 Prototype IDs (1) 20 Alien Tech Used (0) 0 Bonus (0) 0 TOTAL SCORE: 2059 Bonus ------- None Cogmind --------- Core Integrity 0/550 Matter 244/300 Energy 36/100 System Corruption 0% Temperature Cool (9) Movement Core (400) Ox7 Location -8/Materials Parts ------- > --- POWER (1) -------- (None) > --- PROPULSION (3) --- (None) > --- UTILITY (5) ------ Large Storage Unit Machine Analyzer > --- WEAPON (2) ------- Scythe > --- INVENTORY (15) --- Ion Engine Light Ion Engine Improved Ion Engine Improved Heat Sink Large Storage Unit Spread Laser Spread Laser Shotgun Plasma Cutter Plasma Cutter Peak State ------------ > --- POWER ------------ Improved Ion Engine > --- PROPULSION ------- Improved Treads Improved Treads Improved Treads > --- UTILITY ---------- Large Storage Unit Terrain Scanner Shield Generator Shield Generator Shield Generator > --- WEAPON ----------- Improved Light Cannon Improved Light Cannon > --- INVENTORY -------- Ion Engine Ion Engine Improved Treads EM Pulse Gun Medium Laser Spread Laser Spread Laser Particle Cannon Heavy Assault Rifle Shotgun Shotgun Plasma Cutter Plasma Cutter [Rating: 22] Favorites ----------- Power Ion Engine Engine Ion Engine Power Core Light Nuclear Core Propulsion Improved Treads Treads Improved Treads Utility Shield Generator Device Shield Generator Storage Large Storage Unit Processor Machine Analyzer Weapon Improved Light Cannon Energy Gun EM Pulse Gun Ballistic Gun Heavy Assault Rifle Ballistic Cannon Improved Light Cannon Slashing Weapon Scythe Build | -11 -10 -9 -8 ------- Run | Yrd Mat Mat Mat Slots Evolved 4 | . . 2 2 Power . | . . . . Propulsion 1 | . . . 1 Utility 3 | . . 2 1 Weapon . | . . . . Parts Attached 26 | 6 6 3 11 Power 3 | 1 . . 2 Engine 2 | 1 . . 1 Core 1 | . . . 1 Reactor . | . . . . Propulsion 6 | 2 2 . 2 Treads 6 | 2 2 . 2 Leg . | . . . . Wheel . | . . . . Hover . | . . . . Flight . | . . . . Utility 10 | 1 2 2 5 Device 7 | . 1 2 4 Storage 2 | 1 1 . . Processor 1 | . . . 1 Hackware . | . . . . Protection . | . . . . Artifact . | . . . . Weapon 7 | 2 2 1 2 Energy Gun 2 | 2 . . . Energy Cannon . | . . . . Ballistic Gun 1 | . . . 1 Ballistic Cannon 3 | . 2 1 . Launcher . | . . . . Special Weapon . | . . . . Impact Weapon . | . . . . Slashing Weapon 1 | . . . 1 Piercing Weapon . | . . . . Special Melee Weapon . | . . . . Unidentified Prototypes 1 | . . 1 . Parts Lost 14 | . . 1 13 Power 1 | . . . 1 Propulsion 4 | . . . 4 Utility 5 | . . . 5 Weapon 4 | . . 1 3 Highest Loss Streak 13 | . . 1 13 To Critical Strikes . | . . . . Average Slot Usage (%) 97 | . 97 100 94 Engine 10 | . 14 11 8 Treads 24 | . 28 22 25 Device 27 | . 12 33 33 Storage 11 | . 14 11 9 Energy Gun 2 | . 9 . . Ballistic Cannon 18 | . 18 22 15 Naked Turns . | . . . . Heaviest Build 42 | 14 34 38 42 Greatest Support 69 | 40 46 46 69 Greatest Overweight (x) 1 | 1 . . 1 Average Overweight (x) . | . . . . Largest Inventory Capacity 15 | 8 15 15 15 Average Capacity 13 | 7 12 15 15 Most Carried 15 | 6 14 15 15 Average Carried 11 | 1 8 13 14 Final Capacity 15 | 8 15 15 15 Final Carried 15 | 1 14 15 10 Class Distribution -------------------- 100% | Mutant Dominant Class ---------------- Mutant | -10/Materials Mutant | -9/Materials Mutant | -8/Materials Resources | -11 -10 -9 -8 ----------- Run | Yrd Mat Mat Mat Matter Collected 555 | 129 42 156 228 Remotely 215 | . . . 215 Salvage Created 459 | . 42 142 275 Parts 22 | . 3 9 10 Haulers Intercepted . | . . . . Recyclers Shooed . | . . . . Parts Field Recycled . | . . . . Retrieved Matter . | . . . . Parts Self-Destructed . | . . . . Prevented . | . . . . Kills | -11 -10 -9 -8 ------- Run | Yrd Mat Mat Mat Combat Hostiles Destroyed 7 | . 1 1 5 Guns 1 | . 1 . . Cannons 5 | . . 1 4 AOE 1 | . . . 1 Classes Destroyed 6 | . 1 3 2 Tunneler 1 | . . . 1 Recycler 2 | . . 1 1 Watcher 2 | . . 2 . Grunt 3 | . 1 . 2 Sentry 3 | . . 1 2 Hunter 1 | . . . 1 Best Kill Streak 4 | . 1 2 4 Combat Bots Only 3 | . 1 1 3 Max Kills in Single Turn 2 | . 1 1 2 Gunslinging . | . . . . Exploded 1 | . . . 1 Melee . | . . . . Uniques/NPCs Destroyed . | . . . . Combat | -11 -10 -9 -8 -------- Run | Yrd Mat Mat Mat Hostile Shots Fired 115 | . 5 4 106 Missed 22 | . 3 1 18 Damage Taken 1820 | . 22 30 1768 Core 553 | . . . 553 Absorbed by Shields 191 | . . 11 180 Core Remaining (%) 100 | 100 100 100 . Volleys Fired 35 | . 5 8 22 Largest 2 | . 2 2 2 Hottest 90 | . 90 78 78 Shots Fired 64 | . 10 16 38 Gun 16 | . 10 . 6 Cannon 48 | . . 16 32 Launcher . | . . . . Special . | . . . . Kinetic 54 | . . 16 38 Thermal 5 | . 5 . . Explosive . | . . . . Electromagnetic 5 | . 5 . . Robot Hit Streak 9 | . 4 9 4 Robot Miss Streak 3 | . 2 3 2 Penetration Max . | . . . . Secondary Targets . | . . . . Shots Hit Robots 39 | . 6 7 26 Core Hits 18 | . 2 4 12 Critical Kills . | . . . . Critical Parts Destroyed . | . . . . Critical Strikes 5 | . . . 5 Blast 4 | . . . 4 Sever 1 | . . . 1 Melee Attacks 4 | . . . 4 Impact . | . . . . Slashing 4 | . . . 4 Piercing . | . . . . Sneak Attacks . | . . . . Combat Hostiles . | . . . . Follow-up Attacks . | . . . . Damage Inflicted 808 | . 76 142 590 Guns 169 | . 76 . 93 Cannons 571 | . . 142 429 Explosions . | . . . . Melee 60 | . . . 60 Ramming 8 | . . . 8 Kinetic 664 | . . 142 522 Thermal 36 | . 36 . . Explosive . | . . . . Electromagnetic 40 | . 40 . . Impact . | . . . . Slashing 60 | . . . 60 Piercing . | . . . . Highest Corruption . | . . . . Average Corruption . | . . . . Corruption Purged . | . . . . Corruption Blocked . | . . . . Overload Shots . | . . . . Overflow Damage 17 | . . . 17 Projectiles 17 | . . . 17 Explosions . | . . . . Melee . | . . . . Knockbacks 2 | . . . 2 Impact . | . . . . Kinetic 2 | . . . 2 Secondary . | . . . . Self-Inflicted Damage . | . . . . Shots . | . . . . Rammed 1 | . . . 1 Targets Rammed 1 | . . . 1 Kicked . | . . . . Crushed . | . . . . Highest Temperature 96 | . 96 24 83 Average Temperature 18 | . 39 9 14 Received Heat Transfer 310 | . 12 6 292 Siege Activations . | . . . . Robots Corrupted . | . . . . Combat Hostiles . | . . . . Parts Fried . | . . . . Impact Corruptions . | . . . . Robots Melted . | . . . . Combat Hostiles . | . . . . Parts Melted . | . . . . Heat Transferred 111 | . 111 . . Parts Sabotaged . | . . . . Parts Stolen . | . . . . Parts Stripped . | . . . . Power Chain Reactions . | . . . . Alert | -11 -10 -9 -8 ------- Run | Yrd Mat Mat Mat Peak Influence 204 | . 45 117 204 Initial . | . . . . Average 56 | . 25 67 74 Maximum Alert Level 1 | . . . 1 Low Security (%) 99 | 100 100 100 97 Level 1 . | . . . 2 Level 2 . | . . . . Level 3 . | . . . . Level 4 . | . . . . Level 5 . | . . . . High Security . | . . . . Max Security . | . . . . Squads Dispatched 5 | . 1 . 4 Investigation . | . . . . Extermination . | . . . . Reinforcement 5 | . 1 . 4 Assault . | . . . . Garrison . | . . . . Intercept . | . . . . Searches Triggered . | . . . . Construction Impeded . | . . . . Haulers Reinforced . | . . . . Active Scanning Responses . | . . . . Cargo Convoy Interrupts . | . . . . Stealth | -11 -10 -9 -8 --------- Run | Yrd Mat Mat Mat Distress Signals 1 | . . . 1 Communications Jammed . | . . . . Distress Signals . | . . . . Times Spotted 20 | . 2 5 13 Peak Tracking Total 5 | . 1 1 5 Tactical Retreats . | . . . . Traps | -11 -10 -9 -8 ------- Run | Yrd Mat Mat Mat Traps Triggered 1 | . . . 1 Indirectly . | . . . . Trap Hack Attempts . | . . . . Triggered . | . . . . Disarmed . | . . . . Reprogrammed . | . . . . Reused . | . . . . Traps Extracted . | . . . . Installed . | . . . . Triggered . | . . . . Machines | -11 -10 -9 -8 ---------- Run | Yrd Mat Mat Mat Machines Disabled 1 | . . . 1 Max in Single Turn 1 | . . . 1 Machines Repaired . | . . . . Machines Dismantled . | . . . . Machines Sabotaged . | . . . . Overloaded Fab Kills . | . . . . Hacking | -11 -10 -9 -8 --------- Run | Yrd Mat Mat Mat Machines Accessed 8 | . 3 1 4 Terminals 7 | . 3 1 3 Fabricators . | . . . . Repair Stations . | . . . . Recycling Units . | . . . . Scanalyzers . | . . . . Garrison Access 1 | . . . 1 Total Hacks 16 | . 7 2 7 Successful 9 | . 5 1 3 Failed 7 | . 2 1 4 Catastrophic 1 | . 1 . . Database Lockouts . | . . . . Manual . | . . . . Terminals 15 | . 7 2 6 Fabricators . | . . . . Repair Stations . | . . . . Recycling Units . | . . . . Scanalyzers . | . . . . Garrison Access 1 | . . . 1 Terminal Hacks 9 | . 5 1 3 Record 3 | . 2 1 . Alert Level 1 | . . . 1 Unreport Threat 1 | . 1 . . Security Status 1 | . . . 1 Reinforcement Status 1 | . 1 . . Hauler Manifests 1 | . 1 . . Zone Layout 1 | . . . 1 Fabricator Hacks . | . . . . Repair Station Hacks . | . . . . Recycling Unit Hacks . | . . . . Scanalyzer . | . . . . Garrison Access Hacks . | . . . . Unauthorized Hacks . | . . . . Terminals . | . . . . Fabricators . | . . . . Repair Stations . | . . . . Recycling Units . | . . . . Scanalyzers . | . . . . Garrison Access . | . . . . Data Cores Recovered . | . . . . Used . | . . . . Hacking Detections 4 | . 2 1 1 Full Trace Events 1 | . 1 . . Feedback Events . | . . . . Feedback Blocked . | . . . . Robot Schematics Acquired . | . . . . Robots Built . | . . . . Authchips . | . . . . Time . | . . . . Total Robot Build Rating . | . . . . Part Schematics Acquired . | . . . . Parts Built . | . . . . Authchips . | . . . . Time . | . . . . Total Part Build Rating . | . . . . Parts Repaired . | . . . . Time . | . . . . Parts Recycled . | . . . . Recycled Matter . | . . . . Retrieved Matter . | . . . . Retrieved Components . | . . . . Parts Scanalyzed . | . . . . Part Schematics Acquired . | . . . . Parts Damaged . | . . . . Bothacking | -11 -10 -9 -8 ------------ Run | Yrd Mat Mat Mat Used RIF Installer . | . . . . Robots Hacked . | . . . . Non-combat . | . . . . Combat . | . . . . Robot Hacks Applied . | . . . . Relay Couplers Released . | . . . . Fabnet Peak Effective % . | . . . . Robots Rewired . | . . . . Allies Hacked . | . . . . Hacks Repelled . | . . . . Allies | -11 -10 -9 -8 -------- Run | Yrd Mat Mat Mat Total Allies . | . . . . Largest Group . | . . . . Highest-Rated Group . | . . . . Highest-Rated Ally . | . . . . Total Orders . | . . . . Ally Attacks . | . . . . Total Damage . | . . . . Kills . | . . . . Allies Corrupted . | . . . . Allies Melted . | . . . . Intel | -11 -10 -9 -8 ------- Run | Yrd Mat Mat Mat Robot Analysis Total . | . . . . Derelict Logs Recovered . | . . . . Drone Launches . | . . . . Drone Recoveries . | . . . . Exploration | -11 -10 -9 -8 ------------- Run | Yrd Mat Mat Mat Turns Passed 1192 | 67 288 434 403 Spaces Moved 627 | 46 154 234 193 Core 17 | 17 . . . Treads 610 | 29 154 234 193 Legs . | . . . . Wheels . | . . . . Hover . | . . . . Flight . | . . . . Fastest Speed 50 | 50 160 160 160 Average Speed 157 | 121 160 160 160 Slowest Speed 240 | 160 160 160 240 Overloaded Moves . | . . . . Propulsion Burnouts . | . . . . Robots Hopped . | . . . . Cave-ins Triggered 1 | . . . 1 Exploration Rate (%) 16 | 4 22 22 18 Regions Visited 3 Branch Regions . Pre-discovered Areas . | . . . . Known Exits Taken . | . . . . Unknown Exits Taken 3 | 1 1 1 . Scrap Searched . | . . . . Spaces Dug . | . . . . Terrain Destroyed 3 | . . 1 2 Melee . | . . . . Projectile 3 | . . 1 2 AOE . | . . . . Terrain Rammed . | . . . . Walls Destroyed . | . . . . Machines Disabled . | . . . . Actions | -11 -10 -9 -8 --------- Run | Yrd Mat Mat Mat Total 763 | 57 185 278 243 Wait 30 | . 3 27 . Move 624 | 45 153 233 193 Hop . | . . . . Pick Up 34 | 6 16 5 7 Fast Attach 1 | 1 . . . Attach 18 | 5 3 3 7 Detach . | . . . . Swap 8 | . 3 1 4 Drop 8 | . 2 1 5 Fire 35 | . 5 8 22 Melee 4 | . . . 4 Ram . | . . . . Kick . | . . . . Crush 1 | . . . 1 Escape Stasis . | . . . . Rewire . | . . . . Trap . | . . . . Miscellaneous . | . . . . Route ------- -11/Scrapyard -10/Materials -9/Materials -8/Materials History --------- Turn | Location | Event 5 | -11/Scrapyard | Discovered new exit (range 14) 68 | -11/Scrapyard | Entered Materials 306 | -10/Materials | Build established: Mutant 322 | -10/Materials | Discovered new exit (range 7) 356 | -10/Materials | Entered another Materials area 356 | -9/Materials | Evolved 2 slots: Utility x2 701 | -9/Materials | Discovered new exit (range 15) 790 | -9/Materials | Entered another Materials area 790 | -8/Materials | Evolved 2 slots: Propulsion x1, Utility x1 1180 | -8/Materials | Core integrity fell below 50% 1189 | -8/Materials | Crushed by falling debris 1190 | -8/Materials | Core integrity fell below 20% 1193 | -8/Materials | Destroyed by G-47 Trooper with Particle Gun Last Messages --------------- Penetrated by Slug. Imp. Treads destroyed. Terrain Scanner destroyed. Penetrated by Slug. Hvy. Assault Rifle destroyed. Knocked back. Penetrated by Slug. Shield Generator destroyed. U-05 Engineer builds a Door. U-05 Engineer builds a Wall. Slug penetrates Wall. Penetrated by Slug. The unstable cave ceiling collapses. Crushed by falling debris. [Achievement: Unlikely Earthworm] U-05 Engineer builds a Wall. Penetrated by Slug. Acquired 4 matter. Penetrated by Slug. X-62 Marksman Gauss Rifle severed. Map ----- +----------------------------------------------------+ | ?????????????????????????????????????????????? | | ?????????????????????????????????????????????? | | ?????????????????????????????????????????????? | | ?????????????????????????????????????????????? | | ??????????????? ?????????????????????????????? | | ??????????????? #?#??????????????????????????? | | ??????????????? #????????????????????????????? | | ??????????????? #????????????????????????????? | | ???????????#??? #????????????????????????????? | | ??????????????? #????????????????????????????? | | ??????????????? #????????????????????????????? | | ????#??????#### ##???????????????????????????? | | ?????###+### #######???+####?????????????? | | ?????? % ???? #?????????????? | | ???????? %! [ ?????? #?????????????? | | ????????? = ???????? #?????????????? | | ???????????# #?????????# #????#????????? | | ??????????####+#####????#??# #?????#???????? | | ??????????# #????#??# #?????????????? | | ??????????# % #???#?#?# ##????????????? | | ??#???????# % u #?????#?# #????????#????? | | ??#???????# ##??????# #?? ??????????? | | ??????????# ##?????## ##????????????? | | ????????#?# %;####??# #????????????? | | ??????????# mxHh###### #????????????? | | ??????#???# ;x@g u a #???????? ???? | | ????????#?# ######## #????????????? | | ??????????#############??## #????????????? | | ???????#?????#????#???#???##### ##???????????? | | ?????????#????????????????????# #?? "????????? | | ???????#??????????#####???????# #????????????? | | ???#?????????????? ????????# #??????????? | | ??????????????""""" #???????# #??????????? | | ??????????????""""" #????#??# #?#?????? ?? | | ?????????????#""""" #??#????# #??#???????# | | ?????????????#""""" #???#???# #??#???????# | | ?????????????#""""" #??????## #??#???????# | | ?????????#???#""""" #?????### #########??# | | ??????#??????#""""" ##?????# # #??# | | ????#????????# =#?#??#?# # #??# | | ??????########### ## ######## # #??# | | ??????# [ # + #??# | | ??###?#] # # #??# | | #?????# # #??# | | ??????# [ ########### | | ????#########+# = | | ???## + = = = | | ????# " # * ###### = | | ????# T + == ##?#?######## # | | ????# " # ###########?# ## | +----------------------------------------------------+ Best States ------------- Heat Dissipation 31 Energy Generation 14 Energy Capacity 265 Matter Stores 288 Matter Capacity 300 Sight Range 16 Terrain Scan Range 14 Terrain Scan Density 10 Evasion (%) 50 Recoil Reduction 3 Item Schematics ----------------- None Robot Schematics ------------------ None Fabricated ------------ Nothing Alien Tech Used ----------------- None Achievements -------------- Everything Is Under Control Unlikely Earthworm Challenges ------------ None Game ------ Seed EfficiencyThrusterBoomstick Manual? 0 Play Time 00:17:21 Cumulative 3.2 hours Start 2024.04.05 @ 10:27:39 End 2024.04.05 @ 10:45:20 Sessions 1 Manual Loads 0 Difficulty Rogue Special Mode None Game No. 5 Rogue 5 Adventurer 0 Explorer 0 Win Type - Total 0 Types 0/0/0/0/0/0/0/0/0 Lore% 2 Gallery% 7 Achievement% 7 Wizard Run 0 Options --------- Layout 1 ASCII 0 Keyboard 0 Movement Mouse Keybinds 0 Fullscreen 1 Font 24/Smallcaps Map View 50x35 Zoom Use 0% Tactical HUD 0 Map Filters NONE Filters NONE Steam 1 RUN: 1520c037-7b22-4d48-b042-b6e5de9f1435